Cogmind - Beta 13 @@@ ROGUE MODE // 2024.07.24 @ 19:11:01 Player: Johnny5001 Result: Escaped! Performance ------------- Evolutions (9) 4500 Regions Visited (24) 4800 Robots Destroyed (78) 390 Value Destroyed (2637) 2637 Prototype IDs (42) 840 Alien Tech Used (0) 0 Bonus (6334) 6334 TOTAL SCORE: 19501 Bonus ------- High Alert Combat Kills 31 Follower Combat Kills 1903 Network Hubs Disabled 200 Aligned with FarCom 300 Met Data Miner 300 Met Imprinter 300 Built Enhanced Grunts 300 Win 3000 Cogmind --------- Core Integrity 1485/1600 Matter 210/300 Energy 35/415 System Corruption 1% Temperature Cool (15) Movement Flying (27) Location To Epsilon Eridani Parts ------- > --- POWER (1) -------- Neutrino Core > --- PROPULSION (8) --- Cooled VTOL Module Cooled VTOL Module Cooled VTOL Module Flying Fortress v7 Q-thruster > --- UTILITY (14) ----- Medium Storage Unit Small Battery Long-range Terrain Scanner Advanced Terrain Scan Processor 0b10 Decoder Chip [Generic] Advanced Transmission Jammer Makeshift ECM Suite Improved Propulsion Shielding Layered Medium Armor Plating Centrium Medium Armor Plating Centrium Medium Armor Plating Improved Hacking Suite Improved Hacking Suite Improved Hacking Suite > --- WEAPON (2) ------- Antimatter Cannon Phasing Sabre > --- INVENTORY (10) --- Particle Reactor Light Quantum Reactor Field Propulsion Drive Q-thruster Heavy Reflective Plating Advanced Hardlight Generator Heavy Rocket Launcher Improved Plasma Cutter Peak State ------------ > --- POWER ------------ Neutrino Core > --- PROPULSION ------- Cooled VTOL Module Cooled VTOL Module Cooled VTOL Module Flying Fortress v7 Q-thruster > --- UTILITY ---------- Medium Storage Unit Long-range Terrain Scanner Advanced Terrain Scan Processor 0b10 Decoder Chip [Generic] Quantum Capacitor Advanced Transmission Jammer Improved Propulsion Shielding Improved Utility Shielding Centrium Medium Armor Plating Centrium Medium Armor Plating Improved Hacking Suite Improved Hacking Suite Improved Hacking Suite > --- WEAPON ----------- Antimatter Cannon Phasing Sabre > --- INVENTORY -------- Particle Reactor Light Quantum Reactor Field Propulsion Drive Makeshift ECM Suite Improved Propulsion Shielding Heavy Reflective Plating Advanced Hardlight Generator Heavy Rocket Launcher Improved Plasma Cutter [Rating: 155] Favorites ----------- Power Neutrino Core Engine Improved Deuterium Engine Power Core Neutrino Core Propulsion Cooled VTOL Module Treads Light Treads Leg Aluminum Leg Wheel Wheel Hover Unit Improved Gravmag System Flight Unit Cooled VTOL Module Utility Small Storage Unit Device Improved Terrain Scanner Storage Small Storage Unit Processor Improved Terrain Scan Processor Hackware Improved Hacking Suite Protection Hardened Medium Armor Plating Weapon Antimatter Cannon Energy Gun Particle Gun Ballistic Gun Light Assault Rifle Ballistic Cannon Antimatter Cannon Launcher Heavy Rocket Launcher Special Weapon Mining Laser Impact Weapon Heavy Hammer Slashing Weapon Falx Piercing Weapon Spear Special Melee Weapon Improved Datajack Build | -11 -10 -10 -10 -9 -8 -7 -7 -7 -7 -6 -6 -6 -6 -6 -5 -5 -4 -4 -4 -4 -4 -3 -2 -1 ------- Run | Yrd Mat Min Exi Min Mat Fac Low Low Zio Pro Fac Low Low Dat Pro Fac Fac Ext Cet Arc Hub Res Res Acc Slots Evolved 18 | . . . . . 4 2 . . . . 2 . . . . 2 2 . . . . 2 2 2 Power . | . . . . . . . . . . . . . . . . . . . . . . . . . Propulsion 6 | . . . . . 2 1 . . . . 1 . . . . . 1 . . . . . 1 . Utility 12 | . . . . . 2 1 . . . . 1 . . . . 2 1 . . . . 2 1 2 Weapon . | . . . . . . . . . . . . . . . . . . . . . . . . . Parts Attached 159 | 2 7 10 . 2 15 7 2 10 1 3 16 5 5 1 2 26 2 21 4 2 . 1 7 8 Power 7 | . 1 1 . . 1 1 . . . . 1 . . . . 1 . 1 . . . . . . Engine 6 | . 1 1 . . 1 1 . . . . 1 . . . . 1 . . . . . . . . Core 1 | . . . . . . . . . . . . . . . . . . 1 . . . . . . Reactor . | . . . . . . . . . . . . . . . . . . . . . . . . . Propulsion 20 | . 2 4 . 1 1 1 . . . . 3 . . . . 5 1 1 . . . . 1 . Treads 2 | . 2 . . . . . . . . . . . . . . . . . . . . . . . Leg 4 | . . 3 . 1 . . . . . . . . . . . . . . . . . . . . Wheel 1 | . . 1 . . . . . . . . . . . . . . . . . . . . . . Hover 1 | . . . . . . . . . . . 1 . . . . . . . . . . . . . Flight 12 | . . . . . 1 1 . . . . 2 . . . . 5 1 1 . . . . 1 . Utility 90 | 1 2 1 . . 6 4 2 6 . 2 7 5 3 1 2 15 1 14 3 2 . 1 6 6 Device 37 | 1 1 1 . . 2 2 1 3 . 1 2 4 2 . 2 6 1 3 . . . . 3 2 Storage 3 | . . . . . 1 . . . . . . . . . . . . 1 . . . . . 1 Processor 6 | . 1 . . . . . 1 . . . 1 . . . . 1 . 2 . . . . . . Hackware 8 | . . . . . 1 . . . . . . 1 1 . . 1 . . . 2 . 1 . 1 Protection 36 | . . . . . 2 2 . 3 . 1 4 . . 1 . 7 . 8 3 . . . 3 2 Artifact . | . . . . . . . . . . . . . . . . . . . . . . . . . Weapon 42 | 1 2 4 . 1 7 1 . 4 1 1 5 . 2 . . 5 . 5 1 . . . . 2 Energy Gun 2 | . . 2 . . . . . . . . . . . . . . . . . . . . . . Energy Cannon . | . . . . . . . . . . . . . . . . . . . . . . . . . Ballistic Gun 4 | 1 2 1 . . . . . . . . . . . . . . . . . . . . . . Ballistic Cannon 5 | . . . . . . . . . . . 2 . . . . 1 . . 1 . . . . 1 Launcher 6 | . . . . . . . . 1 1 . 2 . . . . . . 1 . . . . . 1 Special Weapon 4 | . . 1 . 1 . . . . . . . . . . . 1 . 1 . . . . . . Impact Weapon 9 | . . . . . 5 . . 2 . 1 . . 1 . . . . . . . . . . . Slashing Weapon 6 | . . . . . . . . . . . . . 1 . . 2 . 3 . . . . . . Piercing Weapon 2 | . . . . . . 1 . . . . . . . . . 1 . . . . . . . . Special Melee Weapon 4 | . . . . . 2 . . 1 . . 1 . . . . . . . . . . . . . Unidentified Prototypes 5 | . . . . 1 . . . . . . 1 . . . . 2 . . 1 . . . . . Parts Lost 14 | . 2 3 . 3 . . . . . . . . . . . 3 . 2 . . . . . 1 Power 3 | . 1 . . . . . . . . . . . . . . 1 . 1 . . . . . . Propulsion 2 | . . 1 . 1 . . . . . . . . . . . . . . . . . . . . Utility 7 | . . 1 . 2 . . . . . . . . . . . 2 . 1 . . . . . 1 Weapon 2 | . 1 1 . . . . . . . . . . . . . . . . . . . . . . Highest Loss Streak 3 | . 1 2 . 3 . . . . . . . . . . . 3 . 1 . . . . . 1 To Critical Strikes . | . . . . . . . . . . . . . . . . . . . . . . . . . Average Slot Usage (%) 79 | . 100 100 71 44 63 74 76 76 76 76 78 80 80 80 80 76 84 81 84 84 84 80 86 86 Engine 5 | . 14 14 14 1 6 7 7 7 7 7 6 6 6 6 6 5 5 . . . . . . . Core 1 | . . . . . . . . . . . . . . . . . . 4 5 5 5 4 4 4 Treads 1 | . 26 . . . . . . . . . . . . . . . . . . . . . . . Leg 3 | . 1 26 28 28 . . . . . . . . . . . . . . . . . . . . Flight 13 | . . . . . 9 15 15 15 15 15 13 20 20 20 20 11 21 20 21 21 21 19 21 20 Device 6 | . 14 14 14 . 5 7 7 6 . . 5 6 6 2 6 5 10 5 5 5 5 4 7 11 Storage 7 | . 14 14 14 1 8 7 7 7 7 7 6 6 6 6 6 5 5 5 5 5 5 4 4 5 Processor 5 | . . . . . . . 7 7 7 7 6 6 6 6 6 11 10 10 10 10 10 9 8 8 Hackware 5 | . . . . . 7 7 7 7 7 7 6 6 6 6 6 6 5 5 5 9 10 14 13 12 Protection 11 | . . . . . 8 13 7 7 15 14 13 13 13 17 13 15 15 18 21 15 15 14 17 16 Ballistic Gun 3 | . 28 22 . . . . . . . . . . . . . . . . . . . . . . Ballistic Cannon 1 | . . . . . . . . . . . 3 . . . . 4 5 . 4 5 5 4 4 3 Launcher 1 | . . . . . . . . . . 7 2 6 6 6 6 . . 2 . . . . . . Impact Weapon 2 | . . . . . 15 7 7 6 6 4 6 6 2 . . . . . . . . . . . Slashing Weapon 2 | . . . . . . . . . . . . . 3 6 6 4 5 5 5 5 5 4 4 4 Piercing Weapon 1 | . . . . . . 6 7 7 7 2 . . . . . . . . . . . . . . Naked Turns . | . . . . . . . . . . . . . . . . . . . . . . . . . Heaviest Build 73 | 13 14 15 15 12 27 37 29 39 39 43 47 51 52 52 52 53 43 65 61 61 53 53 57 73 Greatest Support 79 | 20 40 40 20 20 50 55 55 55 55 55 61 61 61 61 61 63 55 65 65 65 65 65 79 79 Greatest Overweight (x) 14 | . . . . . . . . . . . . . . . . . . 14 . . . . . . Average Overweight (x) . | . . . . . . . . . . . . . . . . . . . . . . . . . Largest Inventory Capacity 10 | 8 8 8 8 8 8 8 8 8 8 8 8 8 8 8 8 8 8 10 10 10 10 10 10 10 Average Capacity 8 | 8 8 8 8 5 7 8 8 8 8 8 8 8 8 8 8 8 8 8 10 10 10 10 10 10 Most Carried 10 | 6 8 8 8 7 8 8 8 8 8 8 8 8 8 8 8 8 7 10 10 10 10 10 10 10 Average Carried 7 | 6 6 7 7 5 7 7 7 7 7 8 7 7 7 6 6 7 6 7 9 9 10 9 9 9 Final Capacity 10 | 8 8 8 8 5 8 8 8 8 8 8 8 8 8 8 8 8 8 10 10 10 10 10 10 10 Final Carried 10 | 6 6 8 8 5 8 8 8 8 8 8 8 8 8 6 8 8 7 10 10 10 10 10 10 9 Class Distribution -------------------- 54% | Mutant 11% | Scavenger-Scout 9% | Scout 6% | Scavenger-Ninja 4% | Derelict-Mutant 3% | Derelict-Scout Dominant Class ---------------- Mutant | -10/Materials Mutant | -10/Mines Mutant | -10/Exiles Mutant | -9/Mines Mutant | -8/Materials Mutant | -7/Factory Mutant | -7/Lower Caves Mutant | -7/Lower Caves Mutant | -7/Zion Mutant | -6/Proximity Caves Scout | -6/Factory Mutant | -6/Lower Caves Mutant | -6/Lower Caves Mutant | -6/Data Miner Mutant | -5/Proximity Caves Derelict-Mutant | -5/Factory Derelict-Ninja | -4/Factory Scout | -4/Extension Scavenger-Scout | -4/Cetus Scavenger-Scout | -4/Archives Scavenger-Scout | -4/Hub_04(d) Scavenger-Scout | -3/Research Scavenger-Ninja | -2/Research Scavenger-Ninja | -1/Access Resources | -11 -10 -10 -10 -9 -8 -7 -7 -7 -7 -6 -6 -6 -6 -6 -5 -5 -4 -4 -4 -4 -4 -3 -2 -1 ----------- Run | Yrd Mat Min Exi Min Mat Fac Low Low Zio Pro Fac Low Low Dat Pro Fac Fac Ext Cet Arc Hub Res Res Acc Matter Collected 3187 | 194 214 118 . 87 167 253 20 88 68 155 146 187 50 . 22 336 13 541 70 20 . . 138 300 Remotely . | . . . . . . . . . . . . . . . . . . . . . . . . . Salvage Created 3128 | 10 314 316 . 18 115 81 . 107 . 119 146 111 291 . 72 346 13 359 64 176 . . 143 327 Parts 159 | 3 26 13 . . 4 5 . 1 . 5 2 5 . . 5 21 1 21 4 13 . . 7 23 Haulers Intercepted 4 | . . . . . 2 . . . . . . . . . . 1 . 1 . . . . . . Recyclers Shooed 1 | . . . . 1 . . . . . . . . . . . . . . . . . . . . Parts Field Recycled 1 | . . . . . . . . . . 1 . . . . . . . . . . . . . . Retrieved Matter 14 | . . . . . . . . . . 14 . . . . . . . . . . . . . . Parts Self-Destructed 16 | . . . . . . . . 8 . 5 . 1 . . 2 . . . . . . . . . Prevented 2 | . . . . . . . . . . . . 2 . . . . . . . . . . . . Kills | -11 -10 -10 -10 -9 -8 -7 -7 -7 -7 -6 -6 -6 -6 -6 -5 -5 -4 -4 -4 -4 -4 -3 -2 -1 ------- Run | Yrd Mat Min Exi Min Mat Fac Low Low Zio Pro Fac Low Low Dat Pro Fac Fac Ext Cet Arc Hub Res Res Acc Combat Hostiles Destroyed 43 | . 6 7 . 1 2 1 . 1 . 6 . 5 . . 5 3 . 1 1 . . . . 4 Melee 7 | . . . . . . 1 . . . . . 1 . . . 3 . 1 . . . . . 1 Guns 11 | . 6 5 . . . . . . . . . . . . . . . . . . . . . . Cannons 2 | . . . . 1 . . . . . . . . . . . . . . 1 . . . . . AOE 21 | . . 2 . . . . . 1 . 6 . 4 . . 5 . . . . . . . . 3 Classes Destroyed 13 | 1 2 . . 1 2 2 . 2 . . 1 . . . . 2 . . . . . . . . Worker 2 | . . . . . . . . . . . . . . . . 1 1 . . . . . . . Builder 4 | . . . . . . 1 . . . . . . . . . . . 2 . . . . 1 . Tunneler 3 | 1 . . . . . . . . . . . . . . . . . 2 . . . . . . Hauler 4 | . . . . . 2 . . . . . . . . . . 1 . 1 . . . . . . Recycler 4 | . . . . . . . . . . . 1 . . . . . . 1 . . . . 1 1 Minesweeper 1 | . . . . . . . . 1 . . . . . . . . . . . . . . . . Operator 8 | . . . . . . . . . . . . . . . . 1 . 1 . 5 . . . 1 Watcher 9 | . 2 . . . 1 1 . . . . . . . . . 1 . 1 1 . . . . 2 Swarmer 17 | . . . . . 2 . . . . 4 . 3 . . 5 . . . . . . . . 3 Grunt 16 | . 6 7 . . . . . . . 2 . 1 . . . . . . . . . . . . Duelist 1 | . . . . 1 . . . . . . . . . . . . . . . . . . . . Sentry 2 | . . . . . . . . 1 . . . . . . . . . 1 . . . . . . Programmer 5 | . . . . . . 1 . . . . . . . . . 3 . . . . . . . 1 Cetus Guard 1 | . . . . . . . . . . . . . . . . . . . 1 . . . . . Packrat 1 | . . . . . . . . . . . . . 1 . . . . . . . . . . . Thug 1 | . . . . . . . . . . . . 1 . . . . . . . . . . . . Best Kill Streak 5 | 1 2 2 . 1 2 1 . 1 . 4 1 3 . . 4 3 1 5 2 5 . . 1 3 Combat Bots Only 4 | . 2 2 . 1 1 1 . 1 . 4 . 3 . . 4 2 . 1 1 . . . . 3 Max Kills in Single Turn 4 | 1 1 2 . 1 1 1 . 1 . 3 1 2 1 . 4 1 1 2 1 1 . . 1 2 Gunslinging . | . . . . . . . . . . . . . . . . . . . . . . . . . Exploded 4 | . . 2 . . . . . 1 . 3 . 2 . . 4 . . . . . . . . 2 Melee 1 | . . . . . . 1 . . . . . 1 . . . 1 . 1 . . . . . 1 Uniques/NPCs Destroyed . | . . . . . . . . . . . . . . . . . . . . . . . . . Combat | -11 -10 -10 -10 -9 -8 -7 -7 -7 -7 -6 -6 -6 -6 -6 -5 -5 -4 -4 -4 -4 -4 -3 -2 -1 -------- Run | Yrd Mat Min Exi Min Mat Fac Low Low Zio Pro Fac Low Low Dat Pro Fac Fac Ext Cet Arc Hub Res Res Acc Hostile Shots Fired 452 | . 40 33 . 30 42 69 3 33 . 8 . 20 3 4 13 65 . 29 2 2 1 2 1 52 Missed 195 | . 8 4 . 10 20 35 2 19 . 6 . 11 . 1 8 25 . 9 1 2 . 2 1 31 Damage Taken 4447 | . 535 466 . 244 241 371 11 117 . 66 . 141 84 141 103 820 . 462 23 . 42 . . 580 Core 716 | . 86 66 . 80 32 87 . 24 . 15 . 20 . 50 . 98 . 43 . . . . . 115 Absorbed by Shields 62 | . . . . . . . . . . . . . . . . . . 62 . . . . . . Redirected to Shielding 278 | . . . . . . . . . . . . . . . . 109 . 33 . . 13 . . 123 Regen/Repaired (Parts) 325 | . . . . . . 210 . . . . 115 . . . . . . . . . . . . . Core Remaining (%) 85 | 100 . . . 7 94 . . . . 82 . . . . 91 90 . . . . 96 100 100 92 Volleys Fired 204 | 3 40 30 . 8 2 . . 4 . 9 7 5 . . 3 19 . 15 5 . 2 . 11 41 Largest 2 | 2 2 2 . 1 1 . . 1 . 1 1 1 . . 1 1 . 1 1 . 1 . 1 1 Hottest 100 | 40 40 100 . 100 100 . . 39 . 39 48 39 . . 39 40 . 39 40 . 40 . 40 40 Shots Fired 278 | 6 80 59 . 8 2 . . 4 . 9 7 5 . . 3 21 . 15 5 . 2 . 11 41 Gun 144 | 6 80 58 . . . . . . . . . . . . . . . . . . . . . . Cannon 82 | . . . . . . . . . . . 7 . . . . 21 . . 5 . 2 . 11 36 Launcher 41 | . . . . . . . . 4 . 9 . 5 . . 3 . . 15 . . . . . 5 Special 11 | . . 1 . 8 2 . . . . . . . . . . . . . . . . . . . Kinetic 212 | 6 80 44 . . . . . . . . 7 . . . . 21 . . 5 . 2 . 11 36 Thermal 25 | . . 15 . 8 2 . . . . . . . . . . . . . . . . . . . Explosive 41 | . . . . . . . . 4 . 9 . 5 . . 3 . . 15 . . . . . 5 Electromagnetic . | . . . . . . . . . . . . . . . . . . . . . . . . . Robot Hit Streak 12 | 2 8 12 . 7 1 . . . . 1 . 2 . . . . . . 7 . . . . 8 Robot Miss Streak 6 | 2 5 2 . 6 1 . . . . 2 . . . . . . . . . . . . . . Penetration Max . | . . . . . . . . . . . . . . . . . . . . . . . . . Secondary Targets 1 | . . 1 . . . . . . . . . . . . . . . . . . . . . . Max Gunslinging Chain 1 | . . 1 . . . . . . . . . . . . . . . . . . . . . . Shots Hit Robots 184 | 3 52 28 . 2 15 6 . 11 . 1 4 2 5 1 . 16 1 8 6 7 . . 3 13 Core Hits 122 | 2 19 14 . 2 1 2 . 6 . 11 1 9 2 . 8 7 1 17 2 4 . . 1 13 Critical Kills 1 | . . . . . . . . . . . 1 . . . . . . . . . . . . . Critical Parts Destroyed 4 | . . . . . 2 . . . . . . 1 1 . . . . . . . . . . . Critical Strikes 11 | . . 1 . . 2 2 . . . . 1 1 1 . . 2 . 1 . . . . . . Burn 1 | . . 1 . . . . . . . . . . . . . . . . . . . . . . Smash 5 | . . . . . 2 . . . . . 1 1 1 . . . . . . . . . . . Sever 3 | . . . . . . . . . . . . . . . . 2 . 1 . . . . . . Impale 2 | . . . . . . 2 . . . . . . . . . . . . . . . . . . Melee Attacks 283 | . . . . . 43 33 . 19 1 2 15 1 7 7 1 73 2 11 5 8 3 1 10 41 Impact 70 | . . . . . 42 7 . 3 . 1 15 1 1 . . . . . . . . . . . Slashing 168 | . . . . . . . . . . . . . 6 7 1 73 2 11 5 8 3 1 10 41 Piercing 39 | . . . . . . 26 . 11 1 1 . . . . . . . . . . . . . . Sneak Attacks 33 | . . . . . 5 1 . 6 . . 1 1 1 1 . 4 1 3 . 5 . . 2 2 Combat Hostiles 2 | . . . . . . . . . . . . 1 . . . . . 1 . . . . . . Follow-up Attacks 5 | . . . . . 4 . . 1 . . . . . . . . . . . . . . . . Damage Inflicted 9848 | 27 473 370 . 72 712 244 . 385 . 851 292 534 483 84 441 917 93 1496 233 639 . . 248 1254 Guns 802 | 27 473 302 . . . . . . . . . . . . . . . . . . . . . . Cannons 227 | . . . . . . . . . . . . . . . . . . . 184 . . . . 43 Explosions 3405 | . . 68 . . . . . 117 . 851 . 434 . . 441 . . 974 . . . . . 520 Melee 5318 | . . . . . 688 244 . 268 . . 292 100 483 84 . 917 93 522 49 639 . . 248 691 Ramming . | . . . . . . . . . . . . . . . . . . . . . . . . . Kinetic 984 | 27 473 257 . . . . . . . . . . . . . . . . 184 . . . . 43 Thermal 209 | . . 113 . 72 24 . . . . . . . . . . . . . . . . . . . Explosive 3337 | . . . . . . . . 117 . 851 . 434 . . 441 . . 974 . . . . . 520 Electromagnetic . | . . . . . . . . . . . . . . . . . . . . . . . . . Impact 1343 | . . . . . 688 73 . 47 . . 292 100 143 . . . . . . . . . . . Slashing 3583 | . . . . . . . . . . . . . 340 84 . 917 93 522 49 639 . . 248 691 Piercing 392 | . . . . . . 171 . 221 . . . . . . . . . . . . . . . . Highest Corruption 4 | . 1 1 1 1 . . . . . . . . . . . 4 . . . . 1 . . 1 Average Corruption 1 | . 1 1 1 1 . . . . . . . . . . . 2 . . . . 1 . . 1 Corruption Purged . | . . . . . . . . . . . . . . . . . . . . . . . . . Corruption Blocked . | . . . . . . . . . . . . . . . . . . . . . . . . . Effects 33 | . 1 7 4 3 . . . . . . . . . . . 15 . . . . . . . 3 Message Errors 6 | . . 1 1 . . . . . . . . . . . . 3 . . . . . . . 1 Matter Fused 9 | . . 1 1 1 . . . . . . . . . . . 5 . . . . . . . 1 Heat Flow Errors 4 | . 1 1 . . . . . . . . . . . . . 2 . . . . . . . . Energy Discharges 4 | . . . 1 1 . . . . . . . . . . . 1 . . . . . . . 1 Parts Rejected 1 | . . 1 . . . . . . . . . . . . . . . . . . . . . . Parts Fused 1 | . . 1 . . . . . . . . . . . . . . . . . . . . . . Data Loss (minor) 5 | . . 2 1 1 . . . . . . . . . . . 1 . . . . . . . . Misfires 2 | . . . . . . . . . . . . . . . . 2 . . . . . . . . Alerts 1 | . . . . . . . . . . . . . . . . 1 . . . . . . . . Overload Shots . | . . . . . . . . . . . . . . . . . . . . . . . . . Overflow Damage 1198 | . . . . . 178 26 . 94 . 26 25 100 247 24 . 144 . 69 . 159 . . 80 26 Projectiles . | . . . . . . . . . . . . . . . . . . . . . . . . . Explosions 74 | . . . . . . . . . . 26 . . . . . . . 22 . . . . . 26 Melee 1124 | . . . . . 178 26 . 94 . . 25 100 247 24 . 144 . 47 . 159 . . 80 . Knockbacks 5 | . . . . . . . . . . . 3 . 1 . . . . . . . . . . 1 Impact 4 | . . . . . . . . . . . 3 . 1 . . . . . . . . . . . Kinetic 1 | . . . . . . . . . . . . . . . . . . . . . . . . 1 Secondary . | . . . . . . . . . . . . . . . . . . . . . . . . . Self-Inflicted Damage 90 | . . 55 . . . . . . . 30 . . . . 5 . . . . . . . . . Shots 3 | . . 1 . . . . . . . 1 . . . . 1 . . . . . . . . . Rammed . | . . . . . . . . . . . . . . . . . . . . . . . . . Targets Rammed . | . . . . . . . . . . . . . . . . . . . . . . . . . Kicked . | . . . . . . . . . . . . . . . . . . . . . . . . . Crushed . | . . . . . . . . . . . . . . . . . . . . . . . . . Highest Temperature 372 | . 95 187 . 98 5 2 . 92 . 90 72 372 319 4 31 204 . 164 40 . 4 . 133 94 Average Temperature 51 | . 16 27 . 38 2 2 . 46 . 36 27 68 188 2 14 55 . 43 22 . 4 . 69 26 Received Heat Transfer 1455 | . 261 234 . 114 45 99 . 42 . 18 . 42 322 . 9 117 . 107 . . . . . 45 Effects 3 | . . . . . . . . . . . . 3 . . . . . . . . . . . . Energy Bleed 3 | . . . . . . . . . . . . 3 . . . . . . . . . . . . Siege Activations . | . . . . . . . . . . . . . . . . . . . . . . . . . Robots Corrupted . | . . . . . . . . . . . . . . . . . . . . . . . . . Combat Hostiles . | . . . . . . . . . . . . . . . . . . . . . . . . . Parts Fried 4 | . . . . . 3 1 . . . . . . . . . . . . . . . . . . Impact Corruptions 15 | . . . . . 7 2 . . . . 1 1 4 . . . . . . . . . . . Robots Melted . | . . . . . . . . . . . . . . . . . . . . . . . . . Combat Hostiles . | . . . . . . . . . . . . . . . . . . . . . . . . . Parts Melted 3 | . . 3 . . . . . . . . . . . . . . . . . . . . . . Heat Transferred 485 | . . 285 . 150 50 . . . . . . . . . . . . . . . . . . . Parts Sabotaged . | . . . . . . . . . . . . . . . . . . . . . . . . . Parts Stolen . | . . . . . . . . . . . . . . . . . . . . . . . . . Parts Stripped . | . . . . . . . . . . . . . . . . . . . . . . . . . Power Chain Reactions . | . . . . . . . . . . . . . . . . . . . . . . . . . Alert | -11 -10 -10 -10 -9 -8 -7 -7 -7 -7 -6 -6 -6 -6 -6 -5 -5 -4 -4 -4 -4 -4 -3 -2 -1 ------- Run | Yrd Mat Min Exi Min Mat Fac Low Low Zio Pro Fac Low Low Dat Pro Fac Fac Ext Cet Arc Hub Res Res Acc Peak Influence 826 | 5 139 156 . 32 277 142 . . . . 149 . . . . 191 49 826 505 440 285 171 261 521 Initial 462 | . 3 43 . . 12 50 . . . . 96 . . . . 69 42 23 462 179 84 149 96 156 Average 166 | 3 67 64 . 26 92 61 . . . . 116 . . . . 89 44 263 444 333 142 154 179 320 Maximum Alert Level 3 | . . . . . 1 . . . . . . . . . . . . 3 2 2 1 . 1 2 Low Security (%) 69 | 100 100 100 . 100 88 100 . . . . 100 . . . . 100 100 50 . 2 82 100 54 11 Level 1 16 | . . . . . 11 . . . . . . . . . . . . 22 . 51 17 . 45 67 Level 2 12 | . . . . . . . . . . . . . . . . . . 23 100 45 . . . 20 Level 3 . | . . . . . . . . . . . . . . . . . . 2 . . . . . . Level 4 . | . . . . . . . . . . . . . . . . . . . . . . . . . Level 5 . | . . . . . . . . . . . . . . . . . . . . . . . . . High Security . | . . . . . . . . . . . . . . . . . . . . . . . . . Max Security . | . . . . . . . . . . . . . . . . . . . . . . . . . Squads Dispatched 27 | . 2 . . . 1 3 . . . 1 4 . . . . 8 . 1 . . 1 . 2 4 Investigation 10 | . . . . . . 1 . . . . 2 . . . . 4 . . . . 1 . 1 1 Extermination 5 | . . . . . . 1 . . . . . . . . . 2 . . . . . . . 2 Reinforcement 10 | . 2 . . . 1 1 . . . . 1 . . . . 2 . 1 . . . . 1 1 Assault 1 | . . . . . . . . . . 1 . . . . . . . . . . . . . . Garrison 1 | . . . . . . . . . . . 1 . . . . . . . . . . . . . Intercept . | . . . . . . . . . . . . . . . . . . . . . . . . . Searches Triggered 1 | . . . . . . . . . . . . . . . . . . . . . . . . 1 Construction Impeded 1 | . . . . . . . . . . . . . . . . . . 1 . . . . . . Haulers Reinforced . | . . . . . . . . . . . . . . . . . . . . . . . . . Active Scanning Responses . | . . . . . . . . . . . . . . . . . . . . . . . . . Cargo Convoy Interrupts . | . . . . . . . . . . . . . . . . . . . . . . . . . Stealth | -11 -10 -10 -10 -9 -8 -7 -7 -7 -7 -6 -6 -6 -6 -6 -5 -5 -4 -4 -4 -4 -4 -3 -2 -1 --------- Run | Yrd Mat Min Exi Min Mat Fac Low Low Zio Pro Fac Low Low Dat Pro Fac Fac Ext Cet Arc Hub Res Res Acc Distress Signals 17 | . 1 . . . 3 2 1 . . . . . . . . 2 . 5 1 . . . . 2 Communications Jammed 9 | . . . . . . . . . . . . . . . . . . . . . . . . 9 Distress Signals 9 | . . . . . . . . . . . . . . . . . . . . . . . . 9 Times Spotted 249 | . 13 8 . 4 16 21 7 6 . 12 1 14 1 5 14 34 . 24 6 3 12 1 5 42 Peak Tracking Total 11 | . 3 2 . 3 7 7 4 3 . 8 1 8 1 4 9 8 . 4 5 1 11 1 3 7 Tactical Retreats 55 | . 1 1 . 2 6 5 2 3 . . . 4 1 . 2 9 . 7 1 . . . . 11 Traps | -11 -10 -10 -10 -9 -8 -7 -7 -7 -7 -6 -6 -6 -6 -6 -5 -5 -4 -4 -4 -4 -4 -3 -2 -1 ------- Run | Yrd Mat Min Exi Min Mat Fac Low Low Zio Pro Fac Low Low Dat Pro Fac Fac Ext Cet Arc Hub Res Res Acc Traps Triggered 6 | . 2 . . . . 1 . . . . . . . . . 1 . 2 . . . . . . Indirectly . | . . . . . . . . . . . . . . . . . . . . . . . . . Trap Hack Attempts 8 | . . . . . . . . . . . 8 . . . . . . . . . . . . . Triggered . | . . . . . . . . . . . . . . . . . . . . . . . . . Disarmed 1 | . . . . . . . . . . . 1 . . . . . . . . . . . . . Reprogrammed . | . . . . . . . . . . . . . . . . . . . . . . . . . Reused . | . . . . . . . . . . . . . . . . . . . . . . . . . Traps Extracted . | . . . . . . . . . . . . . . . . . . . . . . . . . Installed . | . . . . . . . . . . . . . . . . . . . . . . . . . Triggered 2 | . . . . . . . . . . . . 2 . . . . . . . . . . . . Machines | -11 -10 -10 -10 -9 -8 -7 -7 -7 -7 -6 -6 -6 -6 -6 -5 -5 -4 -4 -4 -4 -4 -3 -2 -1 ---------- Run | Yrd Mat Min Exi Min Mat Fac Low Low Zio Pro Fac Low Low Dat Pro Fac Fac Ext Cet Arc Hub Res Res Acc Machines Disabled 12 | . . 6 . . . . . . . . . . . 1 . 2 . 1 1 1 . . . . Max in Single Turn 6 | . . 6 . . . . . . . . . . . 1 . 1 . . 1 . . . . . Garrison Access 7 | . . . . . . 2 . . . . 1 . . . . 1 . . . . 1 . . 2 Network Hub 1 | . . . . . . . . . . . . . . . . . . . . . 1 . . . Energy Cycler 1 | . . . . . . . . . . . . . . . . . . 1 . . . . . . Machines Repaired . | . . . . . . . . . . . . . . . . . . . . . . . . . Machines Dismantled 2 | . . . . . . . . . . . . . . . . 1 . 1 . . . . . . Machines Sabotaged 1 | . . . . . . . . . . . . . . . . . . . . . 1 . . . Overloaded Fab Kills . | . . . . . . . . . . . . . . . . . . . . . . . . . Hacking | -11 -10 -10 -10 -9 -8 -7 -7 -7 -7 -6 -6 -6 -6 -6 -5 -5 -4 -4 -4 -4 -4 -3 -2 -1 --------- Run | Yrd Mat Min Exi Min Mat Fac Low Low Zio Pro Fac Low Low Dat Pro Fac Fac Ext Cet Arc Hub Res Res Acc Machines Accessed 90 | . 4 . 2 . 8 8 2 2 . . 8 1 . 4 . 15 2 6 2 . 4 1 5 16 Terminals 55 | . 4 . . . 6 3 . 1 . . 3 . . . . 7 1 6 2 . 3 1 4 14 Fabricators 6 | . . . . . . 1 . . . . 1 . . . . 3 . . . . . . 1 . Repair Stations 7 | . . . . . . 1 . . . . 2 . . . . 3 1 . . . . . . . Recycling Units 3 | . . . . . 1 . . . . . 1 . . . . 1 . . . . . . . . Scanalyzers 2 | . . . . . 1 1 . . . . . . . . . . . . . . . . . . Garrison Access 7 | . . . . . . 2 . . . . 1 . . . . 1 . . . . 1 . . 2 Total Hacks 247 | . 15 . 2 . 27 20 9 2 . . 19 1 . 29 . 30 4 12 2 . 7 5 20 43 Successful 160 | . 12 . 2 . 15 10 9 2 . . 10 1 . 29 . 17 2 6 2 . 3 4 12 24 Failed 86 | . 3 . . . 12 10 . . . . 9 . . . . 13 2 6 . . 4 1 8 18 Catastrophic 14 | . . . . . 2 2 . . . . 2 . . . . 2 . 2 . . . . 2 2 Database Lockouts 1 | . . . . . . . . . . . . . . . . . . . . . . . . 1 Manual 88 | . 7 . 1 . 16 6 . . . . 6 . . . . 12 . 3 1 . 6 4 12 14 Terminals 153 | . 15 . . . 23 10 . 1 . . 7 . . . . 15 1 12 2 . 6 5 16 40 Fabricators 16 | . . . . . . 3 . . . . 3 . . . . 6 . . . . . . 4 . Repair Stations 17 | . . . . . . 3 . . . . 4 . . . . 7 3 . . . . . . . Recycling Units 4 | . . . . . 2 . . . . . 1 . . . . 1 . . . . . . . . Scanalyzers 3 | . . . . . 2 1 . . . . . . . . . . . . . . . . . . Garrison Access 12 | . . . . . . 3 . . . . 4 . . . . 1 . . . . 1 . . 3 Terminal Hacks 102 | . 8 . 2 . 7 2 9 2 . . 2 1 . 29 . 3 1 6 2 . . 3 7 18 Record 35 | . . . 1 . . . 8 1 . . . . . 11 . 1 . 1 1 . . . 3 8 Part Schematic 13 | . . . . . 2 . . . . . . . . 10 . . . 1 . . . . . . Robot Schematic 5 | . . . . . . . . . . . . . . 5 . . . . . . . . . . Prototype ID Bank 5 | . 1 . . . 1 . . . . . . . . 3 . . . . . . . . . . Open Door 12 | . . . . . . . 1 1 . . . 1 . . . . 1 3 1 . . . . 4 Level Access Points 3 | . . . . . . . . . . . . . . . . . . . . . . 1 1 1 Branch Access Points 1 | . . . . . . . . . . . 1 . . . . . . . . . . . . . Emergency Access Points 1 | . . . . . . . . . . . . . . . . . . . . . . . . 1 Machine Index 1 | . . . . . . . . . . . . . . . . . . . . . . . . 1 Terminal Index 6 | . 1 . . . 1 1 . . . . 1 . . . . . . . . . . 1 1 . Alert Level 1 | . . . . . 1 . . . . . . . . . . . . . . . . . . . Locate Traps 11 | . 4 . . . 1 1 . . . . . . . . . 1 . 1 . . . . 2 1 Recall Investigation 1 | . . . . . . . . . . . . . . . . . . . . . . . . 1 Recall Extermination 1 | . . . . . . . . . . . . . . . . . . . . . . . . 1 Registered Components 1 | . 1 . . . . . . . . . . . . . . . . . . . . . . . Zone Layout 4 | . 1 . . . 1 . . . . . . . . . . 1 . . . . . 1 . . Derelict Proto ID Bank 1 | . . . 1 . . . . . . . . . . . . . . . . . . . . . Fabricator Hacks 8 | . . . . . . 1 . . . . 1 . . . . 4 . . . . . . 2 . Load Schematic 5 | . . . . . . 1 . . . . 1 . . . . 2 . . . . . . 1 . Build 3 | . . . . . . . . . . . . . . . . 2 . . . . . . 1 . Repair Station Hacks 11 | . . . . . . 2 . . . . 4 . . . . 4 1 . . . . . . . Scan Component 7 | . . . . . . 1 . . . . 2 . . . . 3 1 . . . . . . . Repair 4 | . . . . . . 1 . . . . 2 . . . . 1 . . . . . . . . Recycling Unit Hacks 2 | . . . . . 1 . . . . . . . . . . 1 . . . . . . . . Retrieve Components 2 | . . . . . 1 . . . . . . . . . . 1 . . . . . . . . Scanalyzer 2 | . . . . . 2 . . . . . . . . . . . . . . . . . . . Insert Component 1 | . . . . . 1 . . . . . . . . . . . . . . . . . . . Analyze 1 | . . . . . 1 . . . . . . . . . . . . . . . . . . . Garrison Access Hacks 7 | . . . . . . 2 . . . . 1 . . . . 1 . . . . 1 . . 2 Seal Access 7 | . . . . . . 2 . . . . 1 . . . . 1 . . . . 1 . . 2 Unauthorized Hacks 28 | . 4 . . . 5 3 . . . . 2 . . . . 4 . . . . 2 1 3 4 Terminals 25 | . 4 . . . 5 3 . . . . 1 . . . . 3 . . . . 2 1 2 4 Track 1 | . 1 . . . . . . . . . . . . . . . . . . . . . . . Assimilate 6 | . 1 . . . 1 1 . . . . . . . . . 1 . . . . . . . 2 Botnet 15 | . 2 . . . 3 2 . . . . 1 . . . . 1 . . . . 1 1 2 2 Operators 2 | . . . . . 1 . . . . . . . . . . 1 . . . . . . . . Sabotage 1 | . . . . . . . . . . . . . . . . . . . . . 1 . . . Fabricators 2 | . . . . . . . . . . . . . . . . 1 . . . . . . 1 . Prioritize 1 | . . . . . . . . . . . . . . . . . . . . . . . 1 . Fabnet 1 | . . . . . . . . . . . . . . . . 1 . . . . . . . . Repair Stations . | . . . . . . . . . . . . . . . . . . . . . . . . . Recycling Units 1 | . . . . . . . . . . . 1 . . . . . . . . . . . . . Tunnel 1 | . . . . . . . . . . . 1 . . . . . . . . . . . . . Scanalyzers . | . . . . . . . . . . . . . . . . . . . . . . . . . Garrison Access . | . . . . . . . . . . . . . . . . . . . . . . . . . Data Cores Recovered 2 | . . . . . . . . . . . . . . . . . . . . . 1 . . 1 Used 1 | . . . . . . . . . . . . . . . . . . . . . . . . 1 Hacking Detections 59 | . 3 . . . 6 6 . . . . 5 . . . . 13 1 3 . . 3 1 5 13 Full Trace Events 7 | . . . . . . 1 . . . . 1 . . . . 3 . . . . . . 1 1 Feedback Events . | . . . . . . . . . . . . . . . . . . . . . . . . . Feedback Blocked . | . . . . . . . . . . . . . . . . . . . . . . . . . Robot Schematics Acquired 9 | . . . . . . . . . 4 . . . . 5 . . . . . . . . . . Robots Built . | . . . . . . . . . . . . . . . . . . . . . . . . . Authchips . | . . . . . . . . . . . . . . . . . . . . . . . . . Time . | . . . . . . . . . . . . . . . . . . . . . . . . . Total Robot Build Rating . | . . . . . . . . . . . . . . . . . . . . . . . . . Part Schematics Acquired 29 | . . . . . 3 . . . 15 . . . . 10 . . . 1 . . . . . . Parts Built 6 | . . . . . . . . . . . . . . . . 4 . . . . . . 2 . Authchips . | . . . . . . . . . . . . . . . . . . . . . . . . . Time 86 | . . . . . . . . . . . . . . . . 50 . . . . . . 36 . Total Part Build Rating 10 | . . . . . . . . . . . . . . . . 4 . . . . . . 6 . Parts Repaired 4 | . . . . . . 1 . . . . 2 . . . . 1 . . . . . . . . Time 132 | . . . . . . 19 . . . . 60 . . . . 53 . . . . . . . . Parts Recycled . | . . . . . . . . . . . . . . . . . . . . . . . . . Recycled Matter . | . . . . . . . . . . . . . . . . . . . . . . . . . Retrieved Matter . | . . . . . . . . . . . . . . . . . . . . . . . . . Retrieved Components 5 | . . . . . 3 . . . . . . . . . . 2 . . . . . . . . Parts Scanalyzed 1 | . . . . . 1 . . . . . . . . . . . . . . . . . . . Part Schematics Acquired 1 | . . . . . 1 . . . . . . . . . . . . . . . . . . . Parts Damaged . | . . . . . . . . . . . . . . . . . . . . . . . . . Bothacking | -11 -10 -10 -10 -9 -8 -7 -7 -7 -7 -6 -6 -6 -6 -6 -5 -5 -4 -4 -4 -4 -4 -3 -2 -1 ------------ Run | Yrd Mat Min Exi Min Mat Fac Low Low Zio Pro Fac Low Low Dat Pro Fac Fac Ext Cet Arc Hub Res Res Acc Used RIF Installer . | . . . . . . . . . . . . . . . . . . . . . . . . . Robots Hacked 6 | . . . . . . . . 5 . . . . . . . . . 1 . . . . . . Non-combat 2 | . . . . . . . . 2 . . . . . . . . . . . . . . . . Combat 4 | . . . . . . . . 3 . . . . . . . . . 1 . . . . . . Robot Hacks Applied 5 | . . . . . . . . 5 . . . . . . . . . . . . . . . . parse_system 5 | . . . . . . . . 5 . . . . . . . . . . . . . . . . Relay Couplers Released . | . . . . . . . . . . . . . . . . . . . . . . . . . Fabnet Peak Effective % 3 | . . . . . . . . . . . . . . . . . 3 3 3 3 3 1 . . Autooverrided 1 | . . . . . . . . . . . . . . . . . . 1 . . . . . . Robots Rewired 12 | . . . . . . . . . . . . . . . . . 1 11 . . . . . . Allies Hacked . | . . . . . . . . . . . . . . . . . . . . . . . . . Hacks Repelled . | . . . . . . . . . . . . . . . . . . . . . . . . . Allies | -11 -10 -10 -10 -9 -8 -7 -7 -7 -7 -6 -6 -6 -6 -6 -5 -5 -4 -4 -4 -4 -4 -3 -2 -1 -------- Run | Yrd Mat Min Exi Min Mat Fac Low Low Zio Pro Fac Low Low Dat Pro Fac Fac Ext Cet Arc Hub Res Res Acc Total Allies 34 | . 1 3 . . 1 . . . 2 . . . . . . 1 1 19 5 . . . . 1 Largest Group 9 | . 1 3 . . 1 . . . 2 2 . . . . . 1 1 9 8 5 5 . . 1 Highest-Rated Group 481 | . 10 40 . . 26 . . . 59 59 . . . . . 26 42 481 480 480 480 . . 45 Highest-Rated Ally 159 | . 10 16 . . 26 . . . 31 31 . . . . . 26 42 159 152 96 96 . . 45 Total Orders 5 | . . . . . . . . . . . . . . . . . . . . 5 . . . . ROAM 3 | . . . . . . . . . . . . . . . . . . . . 3 . . . . FOLLOW 2 | . . . . . . . . . . . . . . . . . . . . 2 . . . . Ally Attacks 295 | . . 16 . . . . . . . 6 . . . . . . . 194 31 28 20 . . . Total Damage 8048 | . . 163 . . . . . . . 106 . . . . . . . 5115 946 970 748 . . . Kills 45 | . . 1 . . . . . . . 2 . . . . . . . 31 3 4 4 . . . Allies Corrupted . | . . . . . . . . . . . . . . . . . . . . . . . . . Allies Melted . | . . . . . . . . . . . . . . . . . . . . . . . . . Intel | -11 -10 -10 -10 -9 -8 -7 -7 -7 -7 -6 -6 -6 -6 -6 -5 -5 -4 -4 -4 -4 -4 -3 -2 -1 ------- Run | Yrd Mat Min Exi Min Mat Fac Low Low Zio Pro Fac Low Low Dat Pro Fac Fac Ext Cet Arc Hub Res Res Acc Robot Analysis Total . | . . . . . . . . . . . . . . . . . . . . . . . . . Derelict Logs Recovered 8 | . . . . . . . 1 1 1 2 . 1 1 . 1 . . . . . . . . . Drone Launches . | . . . . . . . . . . . . . . . . . . . . . . . . . Drone Recoveries . | . . . . . . . . . . . . . . . . . . . . . . . . . Decoded 0b10 Intel 90 | . . . . . . . . . . . . . . . . 33 3 24 2 3 2 3 6 14 Traps 11 | . . . . . . . . . . . . . . . . 2 1 5 . . . . 2 1 Emergency Access 7 | . . . . . . . . . . . . . . . . 5 1 . . . . 1 . . Items 53 | . . . . . . . . . . . . . . . . 21 1 15 1 . 1 1 3 10 Machines 9 | . . . . . . . . . . . . . . . . . . 3 1 2 . 1 1 1 Patrols 9 | . . . . . . . . . . . . . . . . 5 . 1 . . 1 . . 2 Exits 1 | . . . . . . . . . . . . . . . . . . . . 1 . . . . Exploration | -11 -10 -10 -10 -9 -8 -7 -7 -7 -7 -6 -6 -6 -6 -6 -5 -5 -4 -4 -4 -4 -4 -3 -2 -1 ------------- Run | Yrd Mat Min Exi Min Mat Fac Low Low Zio Pro Fac Low Low Dat Pro Fac Fac Ext Cet Arc Hub Res Res Acc Turns Passed 11328 | 44 747 609 434 375 778 676 210 702 428 312 440 287 396 69 171 1128 93 1266 260 704 56 85 230 828 Spaces Moved 14649 | 27 344 368 343 317 933 1083 427 1105 919 712 836 540 795 108 436 1266 181 1169 163 200 127 219 421 1610 Core 317 | . . . . 316 . . . . . . . . . . . . . 1 . . . . . . Treads 324 | . 320 4 . . . . . . . . . . . . . . . . . . . . . . Legs 759 | 27 24 364 343 1 . . . . . . . . . . . . . . . . . . . . Wheels . | . . . . . . . . . . . . . . . . . . . . . . . . . Hover . | . . . . . . . . . . . . . . . . . . . . . . . . . Flight 13249 | . . . . . 933 1083 427 1105 919 712 836 540 795 108 436 1266 181 1168 163 200 127 219 421 1610 Fastest Speed 16 | 120 120 120 120 50 50 39 39 39 39 39 35 35 35 35 35 34 39 29 29 29 29 29 16 16 Average Speed 44 | 120 157 120 120 50 50 39 39 39 39 39 38 35 35 35 35 41 39 36 29 29 29 29 26 26 Slowest Speed 750 | 120 160 160 120 120 50 39 39 39 39 39 39 35 35 35 35 42 39 750 29 29 29 29 29 27 Overloaded Moves 46 | . . . . . . . . . . . . . . . . . . . . . . . 20 26 Propulsion Burnouts . | . . . . . . . . . . . . . . . . . . . . . . . . . Robots Hopped 51 | . . . . . 4 9 . . . . 4 1 . 1 . 2 . 12 . 2 4 1 1 10 Cave-ins Triggered . | . . . . . . . . . . . . . . . . . . . . . . . . . Exploration Rate (%) 52 | 3 64 73 69 49 49 25 59 94 87 70 22 67 84 77 60 47 5 85 68 83 10 7 14 43 Regions Visited 24 Branch Regions 15 Pre-discovered Areas 6 | . . . 1 . . . . . 3 . 1 . . 1 . . . . . . . . . . Known Exits Taken 7 | . . . . . . . 1 . . . 1 1 . . 1 . . . . . 1 1 1 . Unknown Exits Taken 17 | 1 1 1 1 1 1 1 . 1 1 1 . . 1 1 . 1 1 1 1 1 . . . . Scrap Searched 21 | . . 1 . 1 . . . 4 4 4 . 3 3 . 1 . . . . . . . . . Spaces Dug 220 | . . . . . 13 17 . 2 . 22 13 11 2 2 1 67 1 . . . 5 1 14 49 Terrain Destroyed 503 | . . 18 . 2 14 17 . 14 . 125 13 60 2 2 40 69 1 38 . . 5 1 14 68 Melee 129 | . . . . . 13 17 . 2 . 2 8 . 2 2 1 49 1 . . . 3 1 6 22 Projectile 65 | . . . . 2 1 . . . . . 5 . . . . 20 . . . . 2 . 8 27 AOE 309 | . . 18 . . . . . 12 . 123 . 60 . . 39 . . 38 . . . . . 19 Terrain Rammed . | . . . . . . . . . . . . . . . . . . . . . . . . . Walls Destroyed . | . . . . . . . . . . . . . . . . . . . . . . . . . Machines Disabled . | . . . . . . . . . . . . . . . . . . . . . . . . . Actions | -11 -10 -10 -10 -9 -8 -7 -7 -7 -7 -6 -6 -6 -6 -6 -5 -5 -4 -4 -4 -4 -4 -3 -2 -1 --------- Run | Yrd Mat Min Exi Min Mat Fac Low Low Zio Pro Fac Low Low Dat Pro Fac Fac Ext Cet Arc Hub Res Res Acc Total 18706 | 32 480 481 368 509 1173 1282 471 1351 986 735 926 628 898 124 447 1699 198 1951 363 831 134 237 511 1891 Wait 3189 | 1 88 57 19 177 174 166 39 211 62 4 34 76 88 8 4 281 7 612 182 619 7 17 58 198 Move 14534 | 26 343 367 342 316 925 1065 426 1104 918 711 828 537 794 105 435 1261 180 1149 162 196 120 216 418 1590 Hop 39 | . . . . . 3 8 . . . . 3 1 . 1 . 2 . 7 . 1 2 1 1 9 Pick Up 76 | . 2 10 1 1 10 4 2 2 2 2 5 2 1 . 2 14 1 8 1 2 . 1 2 1 Fast Attach 48 | 1 . 1 . 1 7 2 . 2 . 2 5 . 2 . . 6 . 9 1 1 . . 4 4 Attach 29 | . 2 3 . 2 2 1 . . . . 3 . 1 . . 6 2 3 . . . 1 1 2 Detach 2 | . . . . . 1 . . . . . . . . . . 1 . . . . . . . . Swap 83 | 1 5 6 . . 6 4 2 8 1 1 8 5 2 1 2 14 . 9 3 1 . . 2 2 Drop 101 | . . 7 6 4 6 4 2 4 2 4 10 1 3 2 . 17 . 15 4 3 . . 4 3 Fire 204 | 3 40 30 . 8 2 . . 4 . 9 7 5 . . 3 19 . 15 5 . 2 . 11 41 Melee 269 | . . . . . 37 28 . 16 1 2 15 1 7 7 1 73 2 11 5 8 3 1 10 41 Ram . | . . . . . . . . . . . . . . . . . . . . . . . . . Kick . | . . . . . . . . . . . . . . . . . . . . . . . . . Crush . | . . . . . . . . . . . . . . . . . . . . . . . . . Escape Stasis 36 | . . . . . . . . . . . . . . . . . . 36 . . . . . . Rewire 75 | . . . . . . . . . . . . . . . . . 6 69 . . . . . . Trap 8 | . . . . . . . . . . . 8 . . . . . . . . . . . . . Miscellaneous 13 | . . . . . . . . . . . . . . . . 5 . 8 . . . . . . Route ------- -11/Scrapyard -10/Materials (discovered 2 exits: *Mat / [*Min]) -10/Mines (discovered 3 exits: *Mat x2 / *Exi) -10/Exiles -9/Mines -8/Materials -7/Factory -7/Lower Caves -7/Lower Caves (discovered 2 exits: *Fac / *Zio) -7/Zion -6/Proximity Caves -6/Factory (discovered 3 exits: *Fac / *Low x2) -6/Lower Caves -6/Lower Caves (discovered 2 exits: *Fac / *Dat) -6/Data Miner -5/Proximity Caves -5/Factory (discovered 4 exits: *Fac x3 / [*Upp]) -4/Factory (discovered 2 exits: Res / *Ext) -4/Extension (discovered 3 exits: *Res x2 / *Cet) -4/Cetus -4/Archives (discovered 3 exits: Res / *Hub x2) -4/Hub_04(d) -3/Research (discovered 3 exits: *Res x3) -2/Research (discovered 3 exits: *Acc x3) -1/Access (discovered 2 exits: *Sur / [*Com]) To Epsilon Eridani History --------- Turn | Location | Event 3 | -11/Scrapyard | Discovered new exit (range 2) 45 | -11/Scrapyard | Entered Materials 312 | -10/Materials | Build established: Mutant 394 | -10/Materials | Discovered new exit (range 16) 524 | -10/Materials | Identified exit to Materials 698 | -10/Materials | Discovered new exit (range 7) 792 | -10/Materials | Entered Mines 792 | -10/Mines | Accompanied by 1 ally 918 | -10/Mines | Assisted by bots powering up and referring to "LRC-V3" 993 | -10/Mines | Lost 3 allies 1046 | -10/Mines | Discovered exit to Materials (range 11) 1148 | -10/Mines | Core integrity fell below 50% 1181 | -10/Mines | Discovered exit to Materials (range 8) 1396 | -10/Mines | Deemed a non-threat by the Exiles lab entrance 1396 | -10/Mines | Discovered new exit (range 5) 1401 | -10/Mines | Entered Exiles 1435 | -10/Exiles | Met 8R-AWN 1453 | -10/Exiles | Met EX-HEX 1495 | -10/Exiles | Met EX-DEC 1514 | -10/Exiles | Learned location of Zion (-7) 1537 | -10/Exiles | Met EX-BIN 1579 | -10/Exiles | Aligned with FarCom system 1580 | -10/Exiles | Given EX-Vault access code 1611 | -10/Exiles | Opened EX-Vault 1620 | -10/Exiles | Found Flying Fortress v7 1644 | -10/Exiles | Warned to stay clear of 0b10 Research branches 1663 | -10/Exiles | Exiles lab attacked by MAIN.C 1727 | -10/Exiles | Discovered new exit (range 14) 1835 | -10/Exiles | Left Exiles lab with Flying Fortress v7 1835 | -10/Exiles | Entered Mines 1859 | -9/Mines | Core integrity fell below 20% 1878 | -9/Mines | Found a damaged Exp. Sensor Array with a note attached 1879 | -9/Mines | Found Prototype Device 1879 | -9/Mines | Identified Exp. Sensor Array 1910 | -9/Mines | Lost 3 parts (1n2u) 2052 | -9/Mines | Assembled infested the area 2057 | -9/Mines | Assisted by a Guerilla fighting off Assembled 2093 | -9/Mines | Received a Rocket Launcher from a helpful Derelict 2208 | -9/Mines | Discovered new exit (range 2) 2210 | -9/Mines | Entered Materials 2210 | -8/Materials | Evolved 4 slots: Propulsion x2, Utility x2 2621 | -8/Materials | Discovered new exit (range 11) 2988 | -8/Materials | Entered Factory 2988 | -7/Factory | Evolved 2 slots: Propulsion x1, Utility x1 3296 | -7/Factory | Discovered new exit (range 14) 3469 | -7/Factory | Repaired Hrd. Medium Armor Plating 3664 | -7/Factory | Entered Lower Caves 3726 | -7/Lower Caves | Identified exit to Lower Caves 3785 | -7/Lower Caves | Learned Extension emergency access door positions 3785 | -7/Lower Caves | Learned Factory stockpile data 3785 | -7/Lower Caves | Learned Research stockpile data 3874 | -7/Lower Caves | Entered another Lower Caves area 3878 | -7/Lower Caves | Discovered new exit (range 8) 3923 | -7/Lower Caves | Learned Factory emergency access door positions 4295 | -7/Lower Caves | Encountered a Warlord checkpoint 4551 | -7/Lower Caves | Attracted the attention of an 0b10 checkpoint 4569 | -7/Lower Caves | Discovered new exit (range 15) 4576 | -7/Lower Caves | Entered Zion 4609 | -7/Zion | Discovered new exit (range 15) 4768 | -7/Zion | Learned Factory stockpile data 4776 | -7/Zion | Learned location of Warlord (-5) 4807 | -7/Zion | Rebuked by Imprinter 4848 | -7/Zion | Gained Derelict followers 4897 | -7/Zion | Learned location of Quarantine (-2) 4900 | -7/Zion | Given the Hacking Drone Bay 5004 | -7/Zion | Entered Proximity Caves 5004 | -6/Proximity Caves | Accompanied by 2 allies 5009 | -6/Proximity Caves | Learned Factory stockpile data 5038 | -6/Proximity Caves | Learned Factory trap positions 5298 | -6/Proximity Caves | Attracted the attention of an 0b10 outpost 5313 | -6/Proximity Caves | Discovered new exit (range 9) 5316 | -6/Proximity Caves | Entered Factory 5316 | -6/Factory | Evolved 2 slots: Propulsion x1, Utility x1 5317 | -6/Factory | Loaded intel: 71 trap records 5345 | -6/Factory | Repaired Imp. Medium Armor Plating 5369 | -6/Factory | Repaired Hrd. Medium Armor Plating 5587 | -6/Factory | Discovered new exit (range 16) 5599 | -6/Factory | Discovered new exit (range 6) 5627 | -6/Factory | Build established: Scout 5656 | -6/Factory | Identified exit to Lower Caves 5663 | -6/Factory | Identified exit to Factory 5696 | -6/Factory | Garrison activated, responded to threat 5756 | -6/Factory | Entered Lower Caves 5779 | -6/Lower Caves | Identified exit to Lower Caves 5831 | -6/Lower Caves | Attracted the attention of an 0b10 checkpoint 5976 | -6/Lower Caves | Attacked by a faux Warlord 6043 | -6/Lower Caves | Entered another Lower Caves area 6049 | -6/Lower Caves | Build established: Mutant 6067 | -6/Lower Caves | Discovered exit to Factory (range 16) 6304 | -6/Lower Caves | Spotted B-75 Beast 6405 | -6/Lower Caves | Discovered new exit (range 8) 6439 | -6/Lower Caves | Entered Data Miner 6439 | -6/Data Miner | Discovered new exit (range 6) 6446 | -6/Data Miner | Met Data Miner 6453 | -6/Data Miner | Learned location of Section 7 (-2) 6453 | -6/Data Miner | Acquired the access code to Warlord's prototype stash 6461 | -6/Data Miner | Received God Mode back door access code from Data Miner 6478 | -6/Data Miner | Data Conduit disabled 6508 | -6/Data Miner | Entered Proximity Caves 6670 | -5/Proximity Caves | Learned Factory machine intel 6673 | -5/Proximity Caves | Discovered exit to Factory (range 5) 6679 | -5/Proximity Caves | Entered Factory 6679 | -5/Factory | Evolved 2 slots: Utility x2 6681 | -5/Factory | Loaded intel: 259 machine locations 6772 | -5/Factory | Fabricated Propulsion Shielding (x2) 6889 | -5/Factory | Discovered new exit (range 4) 6910 | -5/Factory | Spotted B-75 Beast 7032 | -5/Factory | Lost 3 parts (1p2u) 7280 | -5/Factory | Fabricated Propulsion Shielding (x2) 7470 | -5/Factory | Repaired Broken Imp. Terrain Scanner 7506 | -5/Factory | Build established: Derelict-Mutant 7779 | -5/Factory | Discovered new exit (range 8) 7790 | -5/Factory | Discovered new exit (range 4) 7792 | -5/Factory | Discovered new exit (range 5) 7807 | -5/Factory | Entered another Factory area 7807 | -4/Factory | Evolved 2 slots: Propulsion x1, Utility x1 7808 | -4/Factory | Identified exit to Research 7897 | -4/Factory | Discovered new exit (range 10) 7900 | -4/Factory | Entered Extension 7900 | -4/Extension | Accompanied by 1 ally 7932 | -4/Extension | Rescued a captive Derelict 8021 | -4/Extension | Lost 4 allies 8093 | -4/Extension | Rescued a captive Derelict 8120 | -4/Extension | Rescued a captive Derelict 8122 | -4/Extension | Rescued a captive Derelict 8286 | -4/Extension | Rescued a captive Derelict 8288 | -4/Extension | Rescued a captive Derelict 8329 | -4/Extension | Energy Cycler disabled 8332 | -4/Extension | Rescued a captive Derelict 8336 | -4/Extension | Rescued a captive Derelict 8337 | -4/Extension | Rescued a captive Derelict 8341 | -4/Extension | Rescued A7 8373 | -4/Extension | Build established: Scout 8515 | -4/Extension | Spotted B-86 Titan 8558 | -4/Extension | Discovered exit to Research (range 15) 8558 | -4/Extension | Spotted B-86 Titan 8877 | -4/Extension | Local machine network offline 8911 | -4/Extension | Lost 5 allies 9064 | -4/Extension | Found Hvy. Reflective Plating 9122 | -4/Extension | Discovered new exit (range 22) 9144 | -4/Extension | Discovered exit to Research (range 10) 9166 | -4/Extension | Entered Cetus 9166 | -4/Cetus | Accompanied by 8 allies (A7) 9170 | -4/Cetus | Spotted Cetus Guard 9170 | -4/Cetus | Spotted Cetus Guard 9171 | -4/Cetus | Acquired a Cetus Manufacturing Module code from A7 9191 | -4/Cetus | Spotted Cetus Guard 9191 | -4/Cetus | Allies destroyed Cetus Guard 9201 | -4/Cetus | Spotted Cetus Guard 9202 | -4/Cetus | Allies destroyed Cetus Guard 9221 | -4/Cetus | Destroyed Cetus Guard 9224 | -4/Cetus | Extracted ID and sensor layout for unrecognized location from A7's data core 9247 | -4/Cetus | Lost 8 allies 9251 | -4/Cetus | Started Cetus Manufacturing Module 9276 | -4/Cetus | Manufactured an Enhanced Grunt 9292 | -4/Cetus | Build established: Scavenger-Scout 9301 | -4/Cetus | Manufactured an Enhanced Grunt 9326 | -4/Cetus | Manufactured an Enhanced Grunt 9351 | -4/Cetus | Manufactured an Enhanced Grunt 9376 | -4/Cetus | Manufactured an Enhanced Grunt 9390 | -4/Cetus | Found a strange terminal 9401 | -4/Cetus | Discovered new exit (range 15) 9426 | -4/Cetus | Entered Archives 9426 | -4/Archives | Accompanied by 5 allies 9498 | -4/Archives | Discovered new exit (range 16) 9545 | -4/Archives | Discovered new exit (range 14) 10130 | -4/Archives | Entered Hub_04(d) 10130 | -4/Hub_04(d) | Accompanied by 5 allies 10149 | -4/Hub_04(d) | Discovered exit to Research (range 14) 10176 | -4/Hub_04(d) | Network Hub disabled 10183 | -4/Hub_04(d) | Spotted Lightning 10183 | -4/Hub_04(d) | Spotted Lightning 10183 | -4/Hub_04(d) | Spotted Lightning 10186 | -4/Hub_04(d) | Entered Research 10186 | -3/Research | Evolved 2 slots: Utility x2 10244 | -3/Research | Identified exit to Research 10271 | -3/Research | Entered another Research area 10271 | -2/Research | Evolved 2 slots: Propulsion x1, Utility x1 10271 | -2/Research | Spotted B-90 Cyclops 10396 | -2/Research | Identified exit to Access 10441 | -2/Research | Fabricated Imp. Propulsion Shielding (x2) 10494 | -2/Research | Spotted B-90 Cyclops 10501 | -2/Research | Entered Access 10501 | -1/Access | Evolved 2 slots: Utility x2 10624 | -1/Access | Build established: Scavenger-Ninja 10627 | -1/Access | Found Quantum Capacitor 10903 | -1/Access | Identified exit to Surface 11001 | -1/Access | Search patrols dispatched 11126 | -1/Access | Discovered new exit (range 24) 11232 | -1/Access | Central database locked down 11329 | *** | Escaped! Last Messages --------------- 11304_ R-10 Processor collects Lgt. Antimatter Reactor. 11309_ Connecting with Terminal... >>Open(Door) Sealed Barrier opened. 11310_ The Access Shell folds into the floor. 11316_ O-32 Director: "IFF HANDSHAKE FAILED. SECURING TERMINAL." 11320_ Connecting with Terminal... >>Trojan(Assimilate) Trojan loaded successfully. Testing... System interface override in place. 11320_ ALERT: Suspicious activity at Terminal A016. Dispatching Investigation squad. 11323_ C-30 ARC bursts open, deploying its payload. 11323_ G-73 Enforcer unfolds itself. 11323_ Imp. Propulsion Shielding destroyed. [Achievement: Tester] Map ----- +----------------------------------------------------+ | ? ? ? ? ????????????##????? ? ??? ? ?? ???? ? | | ? ????? ??????######???#????? ??????? ? ????? | | ??###+##?#?# ? ?????##????#??#??##### ???? ? ?? | | ??# #????? ? ? #??###???? ? # #?#?##?#?? | | ??# ###?# ????????#??#?#? ?? # ##?#?????? | | ### ###?# ? ""? ?#???### ? " # ###??#???? | | #????? ??""?#?#?#?## ??""" # #?? ???? | | ### #?##?? ? "?####??## ?"" # #? ? ??? | | ### #?#??? ? ???####??# " # # ??"?? ?? | | ### #???? ??? ? ?##?????# ? ! # #??"?"? ?? | | #???????? ?#?#???## ?? # #?????? ? | | #?#?##??###+###############/### # ?"????? | | ########## #? ?"? ? ? | | n p + ? | | ###################################### # ?? ??? | | ? ? ? ? #?#??#??####?#???????#######?# # ? ? | | ?????? ??#??#?####??############???#?# #? ? ?? ? | | ? ????? ???###????####??##?####?###?## #? ? ? | | ? ??? ??????##???##?#?####???#????#### ####?####? | | ?? ??? ??#?###?#?#?#??#####??###???### #?# ? ? | | ??????????#?##?############### ####### #?#?? ? | | ???????????? ?"?"" #?#?? ? | | ?????? ??? BB????" #??#???#?# | | ????#?#??#?? BB """" ##??#?#?#? | | ?? ? ??C???? ??""" #?? ?? ?? | | ??? ??????????? """" "@ ##? ?# | | ????? ??? ??????""" "" ### ? ?# | | ? ??? ??? ? ? ""?" ##? + | | ?????###?? ??BB ?""" ##? ?? ?# | | ? ????? ?#? ??BB?"??" """ """ ##?? ??# | | ??????????? ?? ?"?"" """T""" ########## | | ???????? ??#???##???########## ####### ## ?? ? #? | | ? ???? ????#?#?#??##???###??####??##?# ## ?? ? ?? | | ??? ???? ???#???######????#?##?#####?# #???? ??? | | ?????""????????#?#?###?#??#?#?####?### #? ? ?# | | ??????? ???????#?#??#?#?##??#?#?????## ##?? ? ?# | | ??????????????#????#?#??#????######?## #? ?????#? | | ???????????????#???#?##???###???????## ##??? ???# | | ????????????##??##?##?###############" #? ?? ? ?# | | ???????????#????#?## """"""""""" # #?? ? ## | | ????????????????#?## """"T"""" # #???????#? | | ????????????????#?## # #?????#?## | | ??????????? ? ? ?# # ###??????? | | ???????????????#??## * + #??? ? ? ? | | ???????? ?????????## ! # "## ?? ? | | ?????????????#????## ! #"%#???? ? ?? | | ????????????#??????################### "##???????? | | ??????????????????####?????? ?????G??" ??? ? ?? | | ????????#?????????????#??#? ? ?"?????" ???? ? ? | | ??????????????????#???#??? ?? ? ? ? ???? ? | +----------------------------------------------------+ Best States ------------- Heat Dissipation 52 Energy Generation 19 Energy Capacity 415 Matter Stores 300 Matter Capacity 300 Sight Range 16 Terrain Scan Range 24 Terrain Scan Density 210 ECM Strength 2 Jamming Range 16 Armor Coverage 825 Propulsion Shielding 66 Utility Shielding 66 Melee Speed Boost 20 Evasion (%) 68 Recoil Reduction 2 Offensive Hacking 48 Defensive Hacking 10 Item Schematics ----------------- Hrd. Medium Armor Plating | -8/Materials | Scanalyzed Propulsion Shielding | -8/Materials | Hacked Structural Scanner | -8/Materials | Hacked Mak. Thermal Plating | -7/Zion | Archive Drone Bay | -7/Zion | Archive Transmission Jammer | -7/Zion | Archive Phase Cannon | -7/Zion | Archive Plasma Cannon | -7/Zion | Archive Imp. Heavy Armor Plating | -7/Zion | Archive Spear | -7/Zion | Archive Adv. Cooling System | -7/Zion | Archive Phasing Sabre | -7/Zion | Archive Remote Datajack | -7/Zion | Archive Fusion Compressor | -7/Zion | Archive Arc Thrower | -7/Zion | Archive Mak. Sword | -7/Zion | Archive Shock Absorption System | -7/Zion | Archive Mak. Transmission Jammer | -7/Zion | Archive Combat Drone Bay | -6/Data Miner | Free Lgt. Regenerative Plating | -6/Data Miner | Free Cld. Gravmag System | -6/Data Miner | Free Prc. Energy Filter | -6/Data Miner | Free Hvy. Proton Cannon | -6/Data Miner | Free Imp. Linear Gravjet | -6/Data Miner | Free Adv. Reaction Control System | -6/Data Miner | Free Phase Gun | -6/Data Miner | Free Imp. Gyrokinetic Inverter | -6/Data Miner | Free Adv. Heavy Treads | -6/Data Miner | Free Imp. Propulsion Shielding | -4/Extension | Hacked Robot Schematics ------------------ R-06 Scavenger | -7/Zion | Archive B-48 Gladiator | -7/Zion | Archive M-14 Sweeper | -7/Zion | Archive X-82 Rainmaker | -7/Zion | Archive L-41 Fighter | -6/Data Miner | Free G-50 Soldier | -6/Data Miner | Free A-27 Freighter | -6/Data Miner | Free P-70 Sage | -6/Data Miner | Free G-67 Veteran | -6/Data Miner | Free Fabricated ------------ Propulsion Shielding | x2 | -5/Factory Propulsion Shielding | x2 | -5/Factory Imp. Propulsion Shielding | x2 | -2/Research Alien Tech Used ----------------- None Achievements -------------- Decoder Ring Omniscient Cartographer Tester Challenges ------------ None Game ------ Seed DirtyCompactReactor Manual? 0 Play Time 04:38:07 Cumulative 59.9 hours Start 2024.07.24 @ 14:11:00 End 2024.07.24 @ 19:11:01 Sessions 1 Manual Loads 0 Difficulty Rogue Special Mode None Game No. 35 Rogue 35 Adventurer 0 Explorer 0 Win Type 0 Total 5 Types 4/0/0/1/0/0/0/0/0 Lore% 47 Gallery% 50 Achievement% 46 Wizard Run 0 Options --------- Layout 1 ASCII 0 Keyboard 0 Movement Mouse Keybinds 0 Fullscreen 1 Font 24/Smallcaps Map View 50x35 Zoom Use 0% Tactical HUD 1 Map Filters NONE Filters NONE Steam 0 RUN: 3c0f8699-5a49-4f32-8e97-da936b573d7d